Cogmind - Beta 17.1 @@@ ROGUE MODE // 2026.08.25 @ 15:26:53 Player: Conwew Result: Destroyed by Y0-RPF(R) with Subdweller Machine Gun Performance ------------- Evolutions (0) 0 Regions Visited (3) 600 Robots Destroyed (29) 145 Value Destroyed (772) 772 Prototype IDs (0) 0 Alien Tech Used (0) 0 Bonus (0) 0 TOTAL SCORE: 1517 Bonus ------- None Cogmind --------- Core Integrity 0/250 Matter 239/300 Energy 125/125 System Corruption 0% Temperature Cool (0) Movement Core (450) Ox8 Location -10/Subcaves Parts ------- > --- POWER (1) -------- Light Ion Engine > --- PROPULSION (2) --- (None) > --- UTILITY (2) ------ Scrap Shield > --- WEAPON (2) ------- Assault Rifle Assault Rifle > --- INVENTORY (5) ---- Ion Engine Wheel Compact Wheel Huge Storage Unit Grenade Launcher Peak State ------------ > --- POWER ------------ Ion Engine > --- PROPULSION ------- Wheel Compact Wheel > --- UTILITY ---------- Heat Sink Visual Processing Unit > --- WEAPON ----------- Medium Laser Assault Rifle > --- INVENTORY -------- Ion Engine Wheel Compact Wheel Huge Storage Unit Grenade Launcher [Rating: 8] Favorites ----------- Power Ion Engine Engine Ion Engine Propulsion Compact Wheel Wheel Compact Wheel Utility Heat Sink Device Heat Sink Processor Visual Processing Unit Protection Scrap Shield Weapon Assault Rifle Energy Gun Medium Laser Ballistic Gun Assault Rifle Launcher Grenade Launcher Build | -11 -10 -10 -10 ------- Run | Yrd Mat Min Sub Slots Evolved . | . . . . Power . | . . . . Propulsion . | . . . . Utility . | . . . . Weapon . | . . . . Parts Attached 22 | 5 14 2 1 Power 5 | 1 4 . . Engine 5 | 1 4 . . Core . | . . . . Reactor . | . . . . Propulsion 7 | 2 5 . . Treads . | . . . . Leg . | . . . . Wheel 7 | 2 5 . . Hover . | . . . . Flight . | . . . . Utility 3 | . 2 . 1 Device 1 | . 1 . . Storage . | . . . . Processor 1 | . 1 . . Hackware . | . . . . Protection 1 | . . . 1 Artifact . | . . . . Weapon 7 | 2 3 2 . Energy Gun 3 | 1 2 . . Energy Cannon . | . . . . Ballistic Gun 3 | 1 1 1 . Ballistic Cannon . | . . . . Launcher 1 | . . 1 . Special Weapon . | . . . . Impact Weapon . | . . . . Slashing Weapon . | . . . . Piercing Weapon . | . . . . Special Melee Weapon . | . . . . Unidentified Prototypes . | . . . . Parts Lost 6 | . 3 2 1 Power 2 | . 2 . . Propulsion 2 | . . 1 1 Utility . | . . . . Weapon 2 | . 1 1 . Highest Loss Streak 2 | . 1 2 1 To Critical Strikes . | . . . . Average Backups 4 | . 3 4 5 Power . | . . 1 1 Propulsion 1 | . 1 2 2 Utility . | . . 1 1 Weapon 1 | . 1 . 1 Tool/Special . | . . . . Unused Backups 4 | . . . 4 Power 1 | . . . 1 Propulsion 2 | . . . 2 Utility 1 | . . . 1 Weapon . | . . . . Tool/Special . | . . . . Average Slot Usage (%) 83 | . 84 85 72 Engine 13 | . 13 14 14 Wheel 23 | . 28 14 12 Device 9 | . 9 14 2 Processor 5 | . 3 14 2 Protection 1 | . . . 11 Energy Gun 11 | . 16 1 . Ballistic Gun 14 | . 11 20 28 Launcher 1 | . . 7 . Peak Build Rating 8 | 5 8 8 8 Average Rating 6 | 4 6 6 7 On Entrance 5 | . 5 8 7 Avg Prop Armor Cover (%) . | . . . . Naked Turns . | . . . . Heaviest Build 25 | 9 10 9 25 Greatest Support 32 | 26 32 16 16 Greatest Overweight (x) 1 | . . . 1 Average Overweight (x) . | . . . . Largest Inventory Capacity 5 | 5 5 5 5 Average Capacity 5 | 5 5 5 5 Most Carried 5 | 1 5 5 5 Average Carried 4 | . 3 4 5 Final Capacity 5 | 5 5 5 5 Final Carried 5 | 1 5 5 5 Class Distribution -------------------- 72% | Mutant 27% | Scavenger-Mutant Dominant Class ---------------- Mutant | -10/Materials Mutant | -10/Mines Mutant | -10/Subcaves Resources | -11 -10 -10 -10 ----------- Run | Yrd Mat Min Sub Matter Collected 566 | 234 259 63 10 Remotely . | . . . . Salvage Created 896 | . 779 43 74 Parts 59 | . 53 . 6 Haulers Intercepted . | . . . . Recyclers Shooed 1 | . 1 . . Parts Field Recycled . | . . . . Retrieved Matter . | . . . . Parts Self-Destructed . | . . . . Prevented . | . . . . Parts Restored . | . . . . Kills | -11 -10 -10 -10 ------- Run | Yrd Mat Min Sub Combat Hostiles Destroyed 22 | . 18 2 2 Guns 21 | . 18 1 2 AOE 1 | . . 1 . Classes Destroyed 7 | . 7 . . Worker 1 | . 1 . . Recycler 1 | . 1 . . Operator 2 | . 2 . . Watcher 3 | . 3 . . Swarmer 5 | . 5 . . Grunt 14 | . 12 2 . Subdweller 3 | . 1 . 2 Best Kill Streak 4 | . 4 2 2 Combat Bots Only 4 | . 4 2 2 Max Kills in Single Turn 2 | . 2 1 1 Gunslinging 1 | . 1 . . Exploded 1 | . . 1 . Melee . | . . . . Uniques/NPCs Destroyed . | . . . . Combat | -11 -10 -10 -10 -------- Run | Yrd Mat Min Sub Hostile Shots Fired 108 | . 67 23 18 Missed 21 | . 10 2 9 Hits 87 | . 57 21 9 Projectile 87 | . 57 21 9 AOE 2 | . . . 2 Critical Strikes 1 | . . 1 . Damage Taken 1203 | . 671 287 245 Core 261 | . 161 79 21 Absorbed by Shields . | . . . . Core Remaining (%) 100 | 100 . . . Volleys Fired 86 | . 65 10 11 Largest 2 | . 2 2 2 Hottest 90 | . 90 70 40 Shots Fired 166 | . 129 15 22 Gun 163 | . 129 12 22 Cannon . | . . . . Launcher 3 | . . 3 . Special . | . . . . Kinetic 65 | . 36 7 22 Thermal 98 | . 93 5 . Explosive 3 | . . 3 . Electromagnetic . | . . . . Robot Hit Streak 13 | . 12 13 8 Robot Miss Streak 5 | . 5 1 3 Penetration Max . | . . . . Secondary Targets 4 | . 3 . 1 Max Gunslinging Chain 1 | . 1 . 1 Shots Hit Robots 110 | . 80 13 17 Core Hits 56 | . 43 6 7 Critical Kills . | . . . . Critical Parts Destroyed . | . . . . Critical Strikes 3 | . 3 . . Burn 3 | . 3 . . Melee Attacks . | . . . . Impact . | . . . . Slashing . | . . . . Piercing . | . . . . Sneak Attacks . | . . . . Combat Hostiles . | . . . . Follow-up Attacks . | . . . . Damage Inflicted 1516 | . 1016 264 236 Guns 1388 | . 1016 136 236 Cannons . | . . . . Explosions 128 | . . 128 . Melee . | . . . . Ramming . | . . . . Kinetic 649 | . 326 87 236 Thermal 739 | . 690 49 . Explosive 128 | . . 128 . Electromagnetic . | . . . . Impact . | . . . . Slashing . | . . . . Piercing . | . . . . Highest Corruption . | . . . . Average Corruption . | . . . . Corruption Purged . | . . . . Corruption Blocked . | . . . . Overload Shots . | . . . . Overflow Damage . | . . . . Projectiles . | . . . . Explosions . | . . . . Melee . | . . . . Knockbacks . | . . . . Impact . | . . . . Kinetic . | . . . . Secondary . | . . . . Self-Inflicted Damage . | . . . . Shots . | . . . . Rammed . | . . . . Targets Rammed . | . . . . Kicked . | . . . . Crushed . | . . . . Highest Temperature 129 | . 129 16 . Average Temperature 28 | . 31 8 . Received Heat Transfer 489 | . 282 180 27 Siege Activations . | . . . . Martial Activations . | . . . . Shielding Activations . | . . . . Robots Disrupted . | . . . . Combat Hostiles . | . . . . Robots Corrupted . | . . . . Combat Hostiles . | . . . . Parts Fried . | . . . . Impact Corruptions . | . . . . Robots Melted . | . . . . Combat Hostiles . | . . . . Parts Melted 4 | . 3 . 1 Heat Transferred 2263 | . 2115 148 . Parts Sabotaged . | . . . . Parts Stolen . | . . . . Parts Stripped . | . . . . Power Chain Reactions . | . . . . Alert | -11 -10 -10 -10 ------- Run | Yrd Mat Min Sub Maximum Alert Level 1 | . 1 . . Low Security (%) 93 | 100 91 100 . Level 1 6 | . 8 . . Level 2 . | . . . . Level 3 . | . . . . Level 4 . | . . . . Level 5 . | . . . . High Security . | . . . . Max Security . | . . . . Peak Influence 214 | . 214 71 . Initial 44 | . . 44 . Average 68 | . 84 22 . Influence Increases 538 | . 481 57 . Destroy 0b10 Robot/C 380 | . 340 40 . Destroy 0b10 Robot/NC 35 | . 35 . . Destroy Leader 86 | . 76 10 . Destroy Structure 7 | . . 7 . Lose Combat Pursuer 30 | . 30 . . Influence Decreases 538 | . 366 172 . Entered New Map 71 | . . 71 . Time Decay 417 | . 336 81 . Lost Part 50 | . 30 20 . Squads Dispatched 3 | . 3 . . Investigation . | . . . . Extermination . | . . . . Reinforcement 3 | . 3 . . Assault . | . . . . Garrison . | . . . . Intercept . | . . . . Searches Triggered . | . . . . Construction Impeded . | . . . . Haulers Reinforced . | . . . . Active Scanning Responses . | . . . . Cargo Convoy Interrupts . | . . . . Stealth | -11 -10 -10 -10 --------- Run | Yrd Mat Min Sub Distress Signals 3 | . 3 . . Communications Jammed . | . . . . Distress Signals . | . . . . Times Spotted 45 | . 32 2 11 Peak Tracking Total 7 | . 6 2 7 Tactical Retreats 1 | . 1 . . Traps | -11 -10 -10 -10 ------- Run | Yrd Mat Min Sub Traps Triggered 1 | . 1 . . Indirectly . | . . . . Trap Hack Attempts . | . . . . Triggered . | . . . . Disarmed . | . . . . Reprogrammed . | . . . . Reused . | . . . . Traps Extracted . | . . . . Installed . | . . . . Triggered . | . . . . Machines | -11 -10 -10 -10 ---------- Run | Yrd Mat Min Sub Machines Disabled . | . . . . Max in Single Turn . | . . . . Machines Repaired . | . . . . Machines Dismantled . | . . . . Machines Sabotaged . | . . . . Overloaded Fab Kills . | . . . . Hacking | -11 -10 -10 -10 --------- Run | Yrd Mat Min Sub Machines Accessed 2 | . 2 . . Terminals 2 | . 2 . . Fabricators . | . . . . Repair Stations . | . . . . Recycling Units . | . . . . Scanalyzers . | . . . . Garrison Access . | . . . . Total Hacks 4 | . 4 . . Successful 1 | . 1 . . Failed 3 | . 3 . . Catastrophic . | . . . . Database Lockouts . | . . . . Manual 5 | . 5 . . Terminals 4 | . 4 . . Fabricators . | . . . . Repair Stations . | . . . . Recycling Units . | . . . . Scanalyzers . | . . . . Garrison Access . | . . . . Terminal Hacks . | . . . . Fabricator Hacks . | . . . . Repair Station Hacks . | . . . . Recycling Unit Hacks . | . . . . Scanalyzer . | . . . . Garrison Access Hacks . | . . . . Unauthorized Hacks 1 | . 1 . . Terminals 1 | . 1 . . Botnet 1 | . 1 . . Fabricators . | . . . . Repair Stations . | . . . . Recycling Units . | . . . . Scanalyzers . | . . . . Garrison Access . | . . . . Data Cores Recovered . | . . . . Used . | . . . . Hacking Detections 2 | . 2 . . Full Trace Events . | . . . . Feedback Events . | . . . . Feedback Blocked . | . . . . Robot Schematics Acquired . | . . . . Robots Built . | . . . . Authchips . | . . . . Time . | . . . . Total Robot Build Rating . | . . . . Part Schematics Acquired . | . . . . Parts Built . | . . . . Authchips . | . . . . Time . | . . . . Total Part Build Rating . | . . . . Part Studies Acquired . | . . . . Parts Repaired . | . . . . Time . | . . . . Parts Recycled . | . . . . Recycled Matter . | . . . . Retrieved Matter . | . . . . Retrieved Components . | . . . . Parts Scanalyzed . | . . . . Part Schematics Acquired . | . . . . Parts Damaged . | . . . . Bothacking | -11 -10 -10 -10 ------------ Run | Yrd Mat Min Sub Used RIF Installer . | . . . . Robots Hacked . | . . . . Non-combat . | . . . . Combat . | . . . . Robot Hacks Applied . | . . . . Relay Couplers Released . | . . . . Fabnet Peak Effective % . | . . . . Robots Rewired . | . . . . Allies Hacked . | . . . . Hacks Repelled . | . . . . Allies | -11 -10 -10 -10 -------- Run | Yrd Mat Min Sub Total Allies . | . . . . Largest Group . | . . . . Highest-Rated Group . | . . . . Highest-Rated Ally . | . . . . Total Orders . | . . . . Ally Attacks . | . . . . Total Damage . | . . . . Kills . | . . . . Allies Corrupted . | . . . . Allies Melted . | . . . . Intel | -11 -10 -10 -10 ------- Run | Yrd Mat Min Sub Active Infowar (turns) 544 | . 259 277 8 Optics 544 | . 259 277 8 Robot Analysis Total . | . . . . Derelict Logs Recovered 1 | . . 1 . Drone Launches . | . . . . Drone Recoveries . | . . . . Exploration | -11 -10 -10 -10 ------------- Run | Yrd Mat Min Sub Turns Passed 1389 | 37 962 277 113 Spaces Moved 1100 | 32 776 225 67 Core 1 | 1 . . . Treads . | . . . . Legs . | . . . . Wheels 1099 | 31 776 225 67 Hover . | . . . . Flight . | . . . . Fastest Speed 50 | 50 80 100 100 Average Speed 93 | 89 90 100 113 Slowest Speed 115 | 100 100 100 115 Overloaded Moves . | . . . . Propulsion Burnouts . | . . . . Robots Hopped . | . . . . Potential Cave-ins . | . . . . Cave-ins Triggered . | . . . . Exploration Rate (%) 34 | 3 76 54 6 Regions Visited 3 Branch Regions 2 Pre-discovered Areas 1 | . . 1 . Known Exits Taken . | . . . . Unknown Exits Taken 3 | 1 1 1 . Scrap Searched 1 | . . 1 . Spaces Dug . | . . . . Terrain Destroyed 14 | . . 14 . Melee . | . . . . Projectile . | . . . . AOE 14 | . . 14 . Terrain Rammed . | . . . . Walls Destroyed . | . . . . Machines Disabled . | . . . . Actions | -11 -10 -10 -10 --------- Run | Yrd Mat Min Sub Total 1287 | 37 905 262 83 Wait 62 | . 35 25 2 Move 1097 | 31 775 224 67 Hop . | . . . . Pick Up 7 | 1 6 . . Fast Attach 18 | 5 11 1 1 Attach 3 | . 2 1 . Detach 1 | . . 1 . Swap 2 | . 2 . . Drop 11 | . 9 . 2 Fire 86 | . 65 10 11 Melee . | . . . . Ram . | . . . . Kick . | . . . . Crush . | . . . . Escape Stasis . | . . . . Rewire . | . . . . Trap . | . . . . Miscellaneous . | . . . . Route ------- -11/Scrapyard -10/Materials (discovered 4 exits: [*Mat x3] / [*Min]) -10/Mines (discovered 2 exits: [*Mat] / [*Sub]) -10/Subcaves History --------- Turn | Location | Event 2 | -11/Scrapyard | Met Revision 17 22 | -11/Scrapyard | Discovered new exit (range 16) 38 | -11/Scrapyard | Entered Materials 319 | -10/Materials | Discovered new exit (range 3) 331 | -10/Materials | Build established: Mutant 394 | -10/Materials | Discovered new exit (range 16) 628 | -10/Materials | Discovered new exit (range 3) 638 | -10/Materials | Derelicts attacked the area 674 | -10/Materials | Core integrity fell below 50% 794 | -10/Materials | Discovered new exit (range 8) 1000 | -10/Materials | Entered Mines 1013 | -10/Mines | Core integrity fell below 20% 1139 | -10/Mines | Discovered new exit (range 14) 1207 | -10/Mines | Learned location of Zion (-7) 1274 | -10/Mines | Discovered new exit (range 5) 1277 | -10/Mines | Entered Subcaves 1283 | -10/Subcaves | A swath of the cavern ceiling suddenly collapsed 1352 | -10/Subcaves | Ambushed by swarm of Subdwellers 1353 | -10/Subcaves | Ambushed by Subdwellers from Twisted Machinery 1364 | -10/Subcaves | Ambushed by Subdweller buried in earth 1390 | -10/Subcaves | Destroyed by Y0-RPF(R) with Subdweller Machine Gun Last Messages --------------- HV Slug penetrates F3-I1P(R). F3-I1P(R) suffers critical hit (Destroy). F3-I1P(R) knocked back. F3-I1P(R) destroyed. VV-01D(h) destroyed. AD-0FL(R) affixes Scrap Shield Fragment to Scrap Shield. CE-IL6(R) affixes Scrap Shield Fragment to Scrap Shield. AD-0FL(R) destroyed. Switching to secondary target: CE-IL6(R). Disposable Heat Sink melted. CE-IL6(R) destroyed. MM-DB7(g) destroyed. 3I-1PQ(R) affixes Scrap Shield Fragment to Scrap Shield. Subatomizers dissect the Sub. Monowheel. Com. Wheel destroyed. 3I-1PQ(R) affixes Scrap Shield Fragment to Scrap Shield. Map ----- +----------------------------------------------------+ | ?????????????????????????????????????????????????? | | ?????????????????????????????????????????????????? | | ???????????????????????????????????? ??????????? | | ??????????????????????????????????# ??????????? | | ?????????????????????????????????? ?????????? | | ?????????????????????????????????? ?????????? | | ??????????????????????????????????? #?????????? | | ??????????????????????????????????? #?????????? | | ???????????????????????????????????# ?????????? | | ???????????????????????????????????# ?????????# | | ???????????????????????????????????# #????????"# | | ???????????????????#???????????????# #????#??#"" | | ??????????????##??? ???????????????# #??##"##"#" | | ?????????????## ??# ??????????????## #??#"#""### | | ??????????#### ### ??????????????# #####"""#"" | | ??????????? # ?????????###### ##""###" | | ????????#??? ????????? ; ""#""""## | | ????????? ?? ?###???? #"##"##"" | | ???????????? ? """## ##### #"""#"##" | | ??????????????# #"""[#=!; ##########" | | ??????????????# " * !&*% !! [ ##???????## | | ??????????????# =R%%[= *%! = #????????? | | ?????????????# !!=&R% |% #???????? | | ?????????????# ###[%] #???????? | | ?????????? ??# ; ?#### | | ?????????# ????##@ #?# ### | | ?????????### ????? ; ; #?# ### | | ???????????# ???? #####? #### | | ???????????# ##?? #???? ######?# # | | ?????????? #???# ## # ### ?? ###??????## # | | ????????? #????#??######??# ? ??????????# # | | ??????????##?????????????????? #??????????##### | | ??????????????????????????????? #???????????????? | | ????????????????????????????????##???????????????? | | ?????????????????????????????????????????????????? | | ?????????????????????????????????????????????????? | | ?????????????????????????????????????????????????? | | ?????????????????????????????????????????????????? | | ?????????????????????????????????????????????????? | | ?????????????????????????????????????????????????? | | ?????????????????????????????????????????????????? | | ?????????????????????????????????????????????????? | | ?????????????????????????????????????????????????? | | ?????????????????????????????????????????????????? | | ?????????????????????????????????????????????????? | | ?????????????????????????????????????????????????? | | ?????????????????????????????????????????????????? | | ?????????????????????????????????????????????????? | | | | | +----------------------------------------------------+ Best States ------------- Heat Dissipation 35 Energy Generation 10 Energy Capacity 250 Matter Stores 300 Matter Capacity 300 Sight Range 18 Terrain Scan Density 10 Armor Coverage 800 Evasion (%) 44 Item Schematics ----------------- None Robot Schematics ------------------ None Fabricated ------------ Nothing Repaired ---------- Nothing Studied --------- None Alien Tech Used ----------------- None Achievements -------------- None Challenges ------------ None Game ------ Seed AutogunPartitionShifter Manual? 0 Play Time 00:12:29 Cumulative 82.4 hours Start 2026.08.25 @ 15:15:58 End 2026.08.25 @ 15:26:53 Sessions 1 Manual Loads 0 Difficulty Rogue Special Mode None Game No. 91 Rogue 91 Adventurer 0 Explorer 0 Win Type - Total 1 Types 1/0/0/0/0/0/0/0/0/0 Lore% 69 Gallery% 49 Achievement% 44 Wizard Run 0 Options --------- Layout 1 ASCII 0 Keyboard 0 Movement Mouse Keybinds 0 Fullscreen 1 Font 24/X11 Map View 50x35 Zoom Use 0% Tactical HUD 0 Map Filters NONE Filters NONE Steam 1 RUN: 32016c10-6c40-4240-8a4c-767751ec7fbf